Workbook

Sheet xxxSheet1 (hidden)
A1: year | B1: year_name | C1: last_updated | D1: PA | E1: PAT | F1: PAR | G1: SRB | H1: SR | I1: BRB | J1: BR | K1: HRB | L1: HR | M1: AR | N1: DSR | O1: DBR | P1: DHR | Q1: DAR | R1: div_allce | S1: sav_allce_BR | T1: sav_allce_HR | U1: LBRB | V1: LBR | W1: UBRB | X1: UBR | Y1: OROI | Z1: fuel_bik | AA1: CGT_LR | AB1: CGT_HR | AC1: CGT_ER | AD1: CGT_AEA | AE1: CGT_LRR | AF1: CGT_HRR | AG1: CT_SPR | AH1: CT_MCR | AI1: CT_MRF | AJ1: CT_MRLT | AK1: CT_MRUT | AL1: CA_MR | AM1: CA_SR | AN1: NIC_PT | AO1: NIC_UEL | AP1: NIC_LR | AQ1: NIC_UR | AR1: NIC_ST | AS1: NIC_ER | AT1: NIC_PT_W | AU1: NIC_UEL_W | AV1: NIC_LPL | AW1: NIC_UPL | AX1: NIC_SE1 | AY1: NIC_SE2 | AZ1: NIC_C2 | BA1: NIC_C2_EXEMPT | BB1: VAT_SR | BC1: VAT_RR | BD1: S_PA | BE1: S_PAT | BF1: S_PAR | BG1: S_SRB | BH1: S_SR | BI1: S_BRB | BJ1: S_BR | BK1: S_HRB | BL1: S_HR | BM1: S_AR | BN1: S_DSR | BO1: S_DBR | BP1: S_DHR | BQ1: S_DAR | BR1: S_div_allce | BS1: S_sav_allce_BR | BT1: S_sav_allce_HR | BU1: S_LBRB | BV1: S_LBR | BW1: S_UBRB | BX1: S_UBR | BY1: nrb | BZ1: rate | CA1: gross_up | CB1: IHT_MRNRB | CC1: HICBC_threshold | CD1: HICBC_limit | CE1: HICBC_divider | CF1: HICBC_rate
A2: 2022 | B2: 2022/23 | C2: 2022-02-28 | D2: 12570 | E2: 100000 | F2: 0.5 | G2: 5000 | H2: 0 | I2: 32700 | J2: 0.2 | K2: 112300 | L2: 0.4 | M2: 0.45 | N2: 0 | O2: 0.0875 | P2: 0.3375 | Q2: 0.3935 | R2: 2000 | S2: 1000 | T2: 500 | U2: 0 | V2: 0 | W2: 0 | X2: 0 | Y2: 0.025 | Z2: 25300 | AA2: 0.1 | AB2: 0.2 | AC2: 0.1 | AD2: 12300 | AE2: 0.18 | AF2: 0.28 | AG2: 0.19 | AH2: 0.19 | AI2: 0 | AJ2: 300000 | AK2: 1500000 | AL2: 0.18 | AM2: 0.06 | AN2: 11908 | AO2: 50270 | AP2: 0.1273 | AQ2: 0.0273 | AR2: 9100 | AS2: 0.1505 | AT2: 229 | AU2: 967 | AV2: 11908 | AW2: 50270 | AX2: 0.0973 | AY2: 0.0273 | AZ2: 3.15 | BA2: 6725 | BB2: 0.2 | BC2: 0.05 | BD2: 12570 | BE2: 100000 | BF2: 0.5 | BG2: 0 | BH2: 0 | BI2: 10956 | BJ2: 0.2 | BK2: 118908 | BL2: 0.41 | BM2: 0.46 | BN2: 0.075 | BO2: 0.0875 | BP2: 0.3375 | BQ2: 0.3935 | BR2: 2000 | BS2: 1000 | BT2: 500 | BU2: 2162 | BV2: 0.19 | BW2: 17974 | BX2: 0.21 | BY2: 325000 | BZ2: 0.4 | CA2: 0.25 | CB2: 175000 | CC2: 50000 | CD2: 60000 | CE2: 100 | CF2: 0.01
A3: 2021 | B3: 2021/22 | C3: 2021-02-28 | D3: 12570 | E3: 100000 | F3: 0.5 | G3: 5000 | H3: 0 | I3: 32700 | J3: 0.2 | K3: 112300 | L3: 0.4 | M3: 0.45 | N3: 0 | O3: 0.075 | P3: 0.325 | Q3: 0.381 | R3: 2000 | S3: 1000 | T3: 500 | U3: 0 | V3: 0 | W3: 0 | X3: 0 | Y3: 0.025 | Z3: 24600 | AA3: 0.1 | AB3: 0.2 | AC3: 0.1 | AD3: 12300 | AE3: 0.18 | AF3: 0.28 | AG3: 0.19 | AH3: 0.19 | AI3: 0 | AJ3: 300000 | AK3: 1500000 | AL3: 0.18 | AM3: 0.06 | AN3: 9568 | AO3: 50270 | AP3: 0.12 | AQ3: 0.02 | AR3: 8840 | AS3: 0.138 | AT3: 184 | AU3: 967 | AV3: 9568 | AW3: 50270 | AX3: 0.09 | AY3: 0.02 | AZ3: 3.05 | BA3: 6515 | BB3: 0.2 | BC3: 0.05 | BD3: 12570 | BE3: 100000 | BF3: 0.5 | BG3: 0 | BH3: 0 | BI3: 10629 | BJ3: 0.2 | BK3: 118908 | BL3: 0.41 | BM3: 0.46 | BN3: 0.075 | BO3: 0.075 | BP3: 0.325 | BQ3: 0.381 | BR3: 2000 | BS3: 1000 | BT3: 500 | BU3: 2097 | BV3: 0.19 | BW3: 18366 | BX3: 0.21 | BY3: 325000 | BZ3: 0.4 | CA3: 0.25 | CB3: 175000 | CC3: 50000 | CD3: 60000 | CE3: 100 | CF3: 0.01
A4: 2020 | B4: 2020/2021 | C4: 2020-03-22 | D4: 12500 | E4: 100000 | F4: 0.5 | G4: 5000 | H4: 0 | I4: 32500 | J4: 0.2 | K4: 112500 | L4: 0.4 | M4: 0.45 | N4: 0 | O4: 0.075 | P4: 0.325 | Q4: 0.381 | R4: 2000 | S4: 1000 | T4: 500 | U4: 0 | V4: 0 | W4: 0 | X4: 0 | Y4: 0.025 | Z4: 24500 | AA4: 0.1 | AB4: 0.2 | AC4: 0.1 | AD4: 12300 | AE4: 0.18 | AF4: 0.28 | AG4: 0.19 | AH4: 0.19 | AI4: 0 | AJ4: 300000 | AK4: 1500000 | AL4: 0.18 | AM4: 0.06 | AN4: 9500 | AO4: 50000 | AP4: 0.12 | AQ4: 0.02 | AR4: 8788 | AS4: 0.138 | AT4: 183 | AU4: 962 | AV4: 9500 | AW4: 50000 | AX4: 0.09 | AY4: 0.02 | AZ4: 3.05 | BA4: 6475 | BB4: 0.2 | BC4: 0.05 | BD4: 12500 | BE4: 100000 | BF4: 0.5 | BG4: 0 | BH4: 0 | BI4: 10573 | BJ4: 0.2 | BK4: 119070 | BL4: 0.41 | BM4: 0.46 | BN4: 0.075 | BO4: 0.075 | BP4: 0.325 | BQ4: 0.381 | BR4: 2000 | BS4: 1000 | BT4: 500 | BU4: 2086 | BV4: 0.19 | BW4: 18272 | BX4: 0.21 | BY4: 325000 | BZ4: 0.4 | CA4: 0.25 | CB4: 175000 | CC4: 50000 | CD4: 60000 | CE4: 100 | CF4: 0.01
A5: 2019 | B5: 2019/2020 | C5: 2019-05-04 | D5: 12500 | E5: 100000 | F5: 0.5 | G5: 5000 | H5: 0 | I5: 32500 | J5: 0.2 | K5: 112500 | L5: 0.4 | M5: 0.45 | N5: 0 | O5: 0.075 | P5: 0.325 | Q5: 0.381 | R5: 2000 | S5: 1000 | T5: 500 | U5: 0 | V5: 0 | W5: 0 | X5: 0 | Y5: 0.025 | Z5: 24100 | AA5: 0.1 | AB5: 0.2 | AC5: 0.1 | AD5: 12000 | AE5: 0.18 | AF5: 0.28 | AG5: 0.19 | AH5: 0.19 | AI5: 0 | AJ5: 300000 | AK5: 1500000 | AL5: 0.18 | AM5: 0.06 | AN5: 8632 | AO5: 50000 | AP5: 0.12 | AQ5: 0.02 | AR5: 8632 | AS5: 0.138 | AT5: 166 | AU5: 962 | AV5: 8632 | AW5: 50000 | AX5: 0.09 | AY5: 0.02 | AZ5: 3 | BA5: 6365 | BB5: 0.2 | BC5: 0.05 | BD5: 12500 | BE5: 100000 | BF5: 0.5 | BG5: 0 | BH5: 0 | BI5: 10395 | BJ5: 0.2 | BK5: 119070 | BL5: 0.41 | BM5: 0.46 | BN5: 0.075 | BO5: 0.075 | BP5: 0.325 | BQ5: 0.381 | BR5: 2000 | BS5: 1000 | BT5: 500 | BU5: 2049 | BV5: 0.19 | BW5: 18486 | BX5: 0.21 | BY5: 325000 | BZ5: 0.4 | CA5: 0.25 | CB5: 150000 | CC5: 50000 | CD5: 60000 | CE5: 100 | CF5: 0.01
A6: 2012 | B6: 2012/2013 | C6: 2018-05-04 | D6: 8105 | E6: 100000 | F6: 0.5 | G6: 2710 | H6: 0.1 | I6: 31660 | J6: 0.2 | K6: 115630 | L6: 0.4 | M6: 0.5 | N6: 0.1 | O6: 0.1 | P6: 0.325 | Q6: 0.425 | R6: 0 | S6: 0 | T6: 0 | U6: 0 | V6: 0 | W6: 0 | X6: 0 | Y6: 0.03 | Z6: 0 | AA6: 0.18 | AB6: 0.28 | AC6: 0.1 | AD6: 10600 | AE6: 0.18 | AF6: 0.28 | AG6: 0.2 | AH6: 0.24 | AI6: 0.01 | AJ6: 300000 | AK6: 1500000 | AL6: 0.18 | AM6: 0.08 | AN6: 7605 | AO6: 42475 | AP6: 0.12 | AQ6: 0.02 | AR6: 7488 | AS6: 0.138 | AT6: 146 | AU6: 817 | AV6: 7605 | AW6: 42475 | AX6: 0.09 | AY6: 0.02 | AZ6: 2.65 | BA6: 0 | BB6: 0.2 | BC6: 0.05 | BY6: 325000 | BZ6: 0.4 | CA6: 0.25 | CB6: 0 | CC6: 50000 | CD6: 60000 | CE6: 100 | CF6: 0.01
A7: 2013 | B7: 2013/2014 | C7: 2018-05-04 | D7: 9440 | E7: 100000 | F7: 0.5 | G7: 2790 | H7: 0.1 | I7: 29220 | J7: 0.2 | K7: 117990 | L7: 0.4 | M7: 0.45 | N7: 0.1 | O7: 0.1 | P7: 0.325 | Q7: 0.375 | R7: 0 | S7: 0 | T7: 0 | U7: 0 | V7: 0 | W7: 0 | X7: 0 | Y7: 0.03 | Z7: 21100 | AA7: 0.18 | AB7: 0.28 | AC7: 0.1 | AD7: 10900 | AE7: 0.18 | AF7: 0.28 | AG7: 0.2 | AH7: 0.23 | AI7: 0.0075 | AJ7: 300000 | AK7: 1500000 | AL7: 0.18 | AM7: 0.08 | AN7: 7755 | AO7: 41450 | AP7: 0.12 | AQ7: 0.02 | AR7: 7696 | AS7: 0.138 | AT7: 149 | AU7: 797 | AV7: 7755 | AW7: 41450 | AX7: 0.09 | AY7: 0.02 | AZ7: 2.7 | BA7: 0 | BB7: 0.2 | BC7: 0.05 | BY7: 325000 | BZ7: 0.4 | CA7: 0.25 | CB7: 0 | CC7: 50000 | CD7: 60000 | CE7: 100 | CF7: 0.01
A8: 2014 | B8: 2014/2015 | C8: 2018-05-04 | D8: 10000 | E8: 100000 | F8: 0.5 | G8: 2880 | H8: 0.1 | I8: 28985 | J8: 0.2 | K8: 118135 | L8: 0.4 | M8: 0.45 | N8: 0.1 | O8: 0.1 | P8: 0.325 | Q8: 0.375 | R8: 0 | S8: 0 | T8: 0 | U8: 0 | V8: 0 | W8: 0 | X8: 0 | Y8: 0.03 | Z8: 21700 | AA8: 0.18 | AB8: 0.28 | AC8: 0.1 | AD8: 11000 | AE8: 0.18 | AF8: 0.28 | AG8: 0.2 | AH8: 0.21 | AI8: 0.0025 | AJ8: 300000 | AK8: 1500000 | AL8: 0.18 | AM8: 0.08 | AN8: 7956 | AO8: 41865 | AP8: 0.12 | AQ8: 0.02 | AR8: 7956 | AS8: 0.138 | AT8: 153 | AU8: 805 | AV8: 7956 | AW8: 41865 | AX8: 0.09 | AY8: 0.02 | AZ8: 2.75 | BA8: 0 | BB8: 0.2 | BC8: 0.05 | BY8: 325000 | BZ8: 0.4 | CA8: 0.25 | CB8: 0 | CC8: 50000 | CD8: 60000 | CE8: 100 | CF8: 0.01
A9: 2015 | B9: 2015/2016 | C9: 2018-05-04 | D9: 10600 | E9: 100000 | F9: 0.5 | G9: 5000 | H9: 0 | I9: 26785 | J9: 0.2 | K9: 118215 | L9: 0.4 | M9: 0.45 | N9: 0.1 | O9: 0.1 | P9: 0.325 | Q9: 0.375 | R9: 0 | S9: 0 | T9: 0 | U9: 0 | V9: 0 | W9: 0 | X9: 0 | Y9: 0.03 | Z9: 22100 | AA9: 0.18 | AB9: 0.28 | AC9: 0.1 | AD9: 11100 | AE9: 0.18 | AF9: 0.28 | AG9: 0.2 | AH9: 0.2 | AI9: 0 | AJ9: 300000 | AK9: 1500000 | AL9: 0.18 | AM9: 0.08 | AN9: 8060 | AO9: 42380 | AP9: 0.12 | AQ9: 0.02 | AR9: 8112 | AS9: 0.138 | AT9: 155 | AU9: 815 | AV9: 8060 | AW9: 42380 | AX9: 0.09 | AY9: 0.02 | AZ9: 2.8 | BA9: 5965 | BB9: 0.2 | BC9: 0.05 | BY9: 325000 | BZ9: 0.4 | CA9: 0.25 | CB9: 0 | CC9: 50000 | CD9: 60000 | CE9: 100 | CF9: 0.01
A10: 2016 | B10: 2016/2017 | C10: 2018-05-04 | D10: 11000 | E10: 100000 | F10: 0.5 | G10: 5000 | H10: 0 | I10: 27000 | J10: 0.2 | K10: 118000 | L10: 0.4 | M10: 0.45 | N10: 0.075 | O10: 0.075 | P10: 0.325 | Q10: 0.381 | R10: 5000 | S10: 1000 | T10: 500 | U10: 0 | V10: 0 | W10: 0 | X10: 0 | Y10: 0.03 | Z10: 22200 | AA10: 0.1 | AB10: 0.2 | AC10: 0.1 | AD10: 11100 | AE10: 0.18 | AF10: 0.28 | AG10: 0.2 | AH10: 0.2 | AI10: 0 | AJ10: 300000 | AK10: 1500000 | AL10: 0.18 | AM10: 0.08 | AN10: 8112 | AO10: 43004 | AP10: 0.12 | AQ10: 0.02 | AR10: 8112 | AS10: 0.138 | AT10: 156 | AU10: 827 | AV10: 8060 | AW10: 43000 | AX10: 0.09 | AY10: 0.02 | AZ10: 2.8 | BA10: 5965 | BB10: 0.2 | BC10: 0.05 | BY10: 325000 | BZ10: 0.4 | CA10: 0.25 | CB10: 0 | CC10: 50000 | CD10: 60000 | CE10: 100 | CF10: 0.01
A11: 2017 | B11: 2017/2018 | C11: 2018-05-04 | D11: 11500 | E11: 100000 | F11: 0.5 | G11: 5000 | H11: 0 | I11: 28500 | J11: 0.2 | K11: 116500 | L11: 0.4 | M11: 0.45 | N11: 0.075 | O11: 0.075 | P11: 0.325 | Q11: 0.381 | R11: 5000 | S11: 1000 | T11: 500 | U11: 0 | V11: 0 | W11: 0 | X11: 0 | Y11: 0.025 | Z11: 22600 | AA11: 0.1 | AB11: 0.2 | AC11: 0.1 | AD11: 11300 | AE11: 0.18 | AF11: 0.28 | AG11: 0.19 | AH11: 0.19 | AI11: 0 | AJ11: 300000 | AK11: 1500000 | AL11: 0.18 | AM11: 0.08 | AN11: 8164 | AO11: 45032 | AP11: 0.12 | AQ11: 0.02 | AR11: 8164 | AS11: 0.138 | AT11: 157 | AU11: 866 | AV11: 8164 | AW11: 45000 | AX11: 0.09 | AY11: 0.02 | AZ11: 2.85 | BA11: 6025 | BB11: 0.2 | BC11: 0.05 | BD11: 11500 | BE11: 100000 | BF11: 0.5 | BG11: 0 | BH11: 0 | BI11: 31500 | BJ11: 0.2 | BK11: 118500 | BL11: 0.4 | BM11: 0.45 | BN11: 0.075 | BO11: 0.075 | BP11: 0.325 | BQ11: 0.381 | BR11: 5000 | BS11: 1000 | BT11: 500 | BU11: 0 | BV11: 0 | BW11: 0 | BX11: 0 | BY11: 325000 | BZ11: 0.4 | CA11: 0.25 | CB11: 100000 | CC11: 50000 | CD11: 60000 | CE11: 100 | CF11: 0.01
A12: 2018 | B12: 2018/2019 | C12: 2018-05-04 | D12: 11850 | E12: 100000 | F12: 0.5 | G12: 5000 | H12: 0 | I12: 29500 | J12: 0.2 | K12: 115500 | L12: 0.4 | M12: 0.45 | N12: 0.075 | O12: 0.075 | P12: 0.325 | Q12: 0.381 | R12: 2000 | S12: 1000 | T12: 500 | U12: 0 | V12: 0 | W12: 0 | X12: 0 | Y12: 0.025 | Z12: 23400 | AA12: 0.1 | AB12: 0.2 | AC12: 0.1 | AD12: 11700 | AE12: 0.18 | AF12: 0.28 | AG12: 0.19 | AH12: 0.19 | AI12: 0 | AJ12: 300000 | AK12: 1500000 | AL12: 0.18 | AM12: 0.08 | AN12: 8424 | AO12: 46384 | AP12: 0.12 | AQ12: 0.02 | AR12: 8424 | AS12: 0.138 | AT12: 162 | AU12: 892 | AV12: 8424 | AW12: 46350 | AX12: 0.09 | AY12: 0.02 | AZ12: 2.95 | BA12: 6205 | BB12: 0.2 | BC12: 0.05 | BD12: 11850 | BE12: 100000 | BF12: 0.5 | BG12: 0 | BH12: 0 | BI12: 10150 | BJ12: 0.2 | BK12: 118420 | BL12: 0.41 | BM12: 0.46 | BN12: 0.075 | BO12: 0.075 | BP12: 0.325 | BQ12: 0.381 | BR12: 2000 | BS12: 1000 | BT12: 500 | BU12: 2000 | BV12: 0.19 | BW12: 19430 | BX12: 0.21 | BY12: 325000 | BZ12: 0.4 | CA12: 0.25 | CB12: 125000 | CC12: 50000 | CD12: 60000 | CE12: 100 | CF12: 0.01
A13: 2023 | B13: 2023/24 | C13: 2023-01-04 | D13: 12570 | E13: 100000 | F13: 0.5 | G13: 5000 | H13: 0 | I13: 32700 | J13: 0.2 | K13: 87440 | L13: 0.4 | M13: 0.45 | N13: 0 | O13: 0.0875 | P13: 0.3375 | Q13: 0.3935 | R13: 1000 | S13: 1000 | T13: 500 | U13: 0 | V13: 0 | W13: 0 | X13: 0 | Y13: 0.02 | Z13: 27800 | AA13: 0.1 | AB13: 0.2 | AC13: 0.1 | AD13: 6000 | AE13: 0.18 | AF13: 0.28 | AG13: 0.19 | AH13: 0.25 | AI13: 0.015 | AJ13: 50000 | AK13: 250000 | AL13: 0.18 | AM13: 0.06 | AN13: 12570 | AO13: 50270 | AP13: 0.12 | AQ13: 0.02 | AR13: 9100 | AS13: 0.138 | AT13: 242 | AU13: 967 | AV13: 12570 | AW13: 50270 | AX13: 0.09 | AY13: 0.02 | AZ13: 3.45 | BA13: 6725 | BB13: 0.2 | BC13: 0.05 | BD13: 12570 | BE13: 100000 | BF13: 0.5 | BG13: 5000 | BH13: 0 | BI13: 10956 | BJ13: 0.2 | BK13: 81478 | BL13: 0.42 | BM13: 0.47 | BN13: 0.075 | BO13: 0.0875 | BP13: 0.3375 | BQ13: 0.3935 | BR13: 1000 | BS13: 1000 | BT13: 500 | BU13: 2162 | BV13: 0.19 | BW13: 17974 | BX13: 0.21 | BY13: 325000 | BZ13: 0.4 | CA13: 0.25 | CB13: 175000 | CC13: 50000 | CD13: 60000 | CE13: 100 | CF13: 0.01
A14: 2024 | B14: 2024/25 | C14: 2023-01-04 | D14: 12570 | E14: 100000 | F14: 0.5 | G14: 5000 | H14: 0 | I14: 32700 | J14: 0.2 | K14: 87440 | L14: 0.4 | M14: 0.45 | N14: 0 | O14: 0.0875 | P14: 0.3375 | Q14: 0.3935 | R14: 500 | S14: 1000 | T14: 500 | U14: 0 | V14: 0 | W14: 0 | X14: 0 | Y14: 0.02 | Z14: 27800 | AA14: 0.1 | AB14: 0.2 | AC14: 0.1 | AD14: 3000 | AE14: 0.18 | AF14: 0.28 | AG14: 0.19 | AH14: 0.25 | AI14: 0.015 | AJ14: 50000 | AK14: 250000 | AL14: 0.18 | AM14: 0.06 | AN14: 12570 | AO14: 50270 | AP14: 0.12 | AQ14: 0.02 | AR14: 9100 | AS14: 0.138 | AT14: 242 | AU14: 967 | AV14: 12570 | AW14: 50270 | AX14: 0.09 | AY14: 0.02 | AZ14: 3.45 | BA14: 6725 | BB14: 0.2 | BC14: 0.05 | BD14: 12570 | BE14: 100000 | BF14: 0.5 | BG14: 5000 | BH14: 0 | BI14: 10956 | BJ14: 0.2 | BK14: 81478 | BL14: 0.42 | BM14: 0.47 | BN14: 0.075 | BO14: 0.0875 | BP14: 0.3375 | BQ14: 0.3935 | BR14: 500 | BS14: 1000 | BT14: 500 | BU14: 2162 | BV14: 0.19 | BW14: 17974 | BX14: 0.21 | BY14: 325000 | BZ14: 0.4 | CA14: 0.25 | CB14: 175000 | CC14: 50000 | CD14: 60000 | CE14: 100 | CF14: 0.01

Sheet Home
C4: Maximum National Insurance contributions calculator
P16: Last updated: | Q16: 2023-11-02
P17: } copyright
C18: 39-41 Bank Street § Ashford § Kent TN23 1DQ § | P18: } disclaimer

Sheet input
B1: max1
A2: hpni | B2: Input: Maximum National Insurance contributions
B4: Tax year | Q4: =whatyear(TODAY()) -> 2023
B5: Choose tax year: | J5: 2022/23 | P5: =+dc(xxxSheet1!$A$2:$CF$14,"year_name",Q4-2) -> 2021/22 | Q5: Last
P6: =+dc(xxxSheet1!$A$2:$CF$14,"year_name",Q4-1) -> 2022/23 | Q6: Current
P7: =+dc(xxxSheet1!$A$2:$CF$14,"year_name",whatyear(TODAY())+1) -> 2024/25 | Q7: Next
B8: Employments | H8: Earnings | J8: NI paid
B10: First employment: | H10: 0 | J10: 0
B12: Second employment: | H12: 0 | J12: 0
B14: Third employment: | H14: 0 | J14: 0
B16: 2022/23 only | H16: Amounts received before 6 July 2022
B18: First employment: | H18: 0 | S18: 22/23
B20: Second employment: | H20: 0 | S20: how much ni paid
B22: Third employment: | H22: 0

Sheet max1
A1: input
A2: hpi | B2: =CONCATENATE("Results ",input!J5) -> Results 2022/23 | R2: =LEFT(input!J5,4) -> 2022
B4: Calculation | E4: =input!J5 -> 2022/23
H5: £ | J5: £ | L5: £
B6: Step 1 | D6: Maximum earnings liable to Class 1 at the main rate for the year
D7: =+CONCATENATE("53 weeks x upper limit minus lower limit (",TEXT(dc(xxxSheet1!$A$2:$CF$14,"NIC_UEL_W",LEFT(E4,4)),"£#,###")," - ",TEXT(R7,"£#,###"),")") -> 53 weeks x upper limit minus lower limit (£967 - £229) | L7: =53*(dc(xxxSheet1!$A$2:$CF$14,"NIC_UEL_W",LEFT(E4,4))-R7) -> 39114 | R7: =dc(xxxSheet1!$A$2:$CF$14,"NIC_PT_W",LEFT(E4,4)) -> 229
B9: Step 2 | D9: =+CONCATENATE("Take ",TEXT(dc(xxxSheet1!$A$2:$CF$14,"NIC_LR",LEFT(E4,4)),"#.00%")," of the amount at Step 1") -> Take 12.73% of the amount at Step 1 | L9: =+L7*dc(xxxSheet1!$A$2:$CF$14,"NIC_LR",LEFT(E$4,4)) -> 4979.2122
B11: Step 3 | D11: Earnings falling between the earnings threshold and the upper limit for each employment
Q13: flags
D15: Employment 1: | F15: =IF(R2="2022","",+CONCATENATE(TEXT(MIN(input!H10,dc(xxxSheet1!$A$2:$CF$14,"NIC_UEL",LEFT(E4,4))),"£#,###")," - ",TEXT(dc(xxxSheet1!$A$2:$CF$14,"NIC_PT",LEFT('max1'!E$4,4)),"£#,###"))) ->  | H15: =MAX((MIN(input!H10,dc(xxxSheet1!$A$2:$CF$14,"NIC_UEL",LEFT(E4,4))))-dc(xxxSheet1!$A$2:$CF$14,"NIC_PT",LEFT('max1'!E$4,4)),0) -> 0 | Q15: =+IF(input!H10<>0,1,0) -> 0
D16: Employment 2: | F16: =IF(R2="2022","",+CONCATENATE(TEXT(input!H12,"£#,###")," - ",TEXT(dc(xxxSheet1!$A$2:$CF$14,"NIC_PT",LEFT('max1'!E$4,4)),"£#,###"))) ->  | H16: =MAX(MIN(input!H12,input!H12-dc(xxxSheet1!$A$2:$CF$14,"NIC_PT",LEFT('max1'!E$4,4))),0) -> 0 | Q16: =+IF(input!H12<>0,1,0) -> 0
D17: Employment 3: | F17: =IF(R2="2022","",+CONCATENATE(TEXT(input!H14,"#,###")," - ",TEXT(dc(xxxSheet1!$A$2:$CF$14,"NIC_PT",LEFT('max1'!E$4,4)),"#,###"))) ->  | H17: =MAX(MIN(input!H14,input!H14-dc(xxxSheet1!$A$2:$CF$14,"NIC_PT",LEFT('max1'!E$4,4))),0) -> 0 | Q17: =+IF(input!H14<>0,1,0) -> 0
J18: =+SUM(H15:H17) -> 0
B20: Step 4 | D20: Deduct the figure in Step 1 from the figure in Step 3 | J20: =+J18-L7 -> -39114
B22: Step 5 | D22: =+CONCATENATE("If result of Step 4 positive, take ",TEXT(dc(xxxSheet1!$A$2:$CF$14,"NIC_UR",LEFT(E4,4)),"#.00%")," of it") -> If result of Step 4 positive, take 2.73% of it | L22: =IF(J20>0,+J20*dc(xxxSheet1!$A$2:$CF$14,"NIC_UR",LEFT(E$4,4)),0) -> 0
B24: Step 6 | D24: Calculate the earnings that exceed the upper limit for each employment
D27: Employment 1: | F27: =IF(R2="2022","",+CONCATENATE(TEXT(input!H10,"£#,###")," - ",TEXT(dc(xxxSheet1!$A$2:$CF$14,"NIC_UEL",LEFT('max1'!E$4,4)),"£#,###"))) ->  | H27: =MAX(input!H10-dc(xxxSheet1!$A$2:$CF$14,"NIC_UEL",LEFT('max1'!E$4,4)),0) -> 0
D28: Employment 2: | F28: =IF(R2="2022","",+CONCATENATE(TEXT(input!H12,"£#,###")," - ",TEXT(dc(xxxSheet1!$A$2:$CF$14,"NIC_UEL",LEFT('max1'!E$4,4)),"£#,###"))) ->  | H28: =MAX(input!H12-dc(xxxSheet1!$A$2:$CF$14,"NIC_UEL",LEFT('max1'!E$4,4)),0) -> 0
D29: Employment 3: | F29: =IF(R2="2022","",+CONCATENATE(TEXT(input!H14,"£#,###")," - ",TEXT(dc(xxxSheet1!$A$2:$CF$14,"NIC_UEL",LEFT('max1'!E$4,4)),"£#,###"))) ->  | H29: =MAX(input!H14-dc(xxxSheet1!$A$2:$CF$14,"NIC_UEL",LEFT('max1'!E$4,4)),0) -> 0
D31: Total of earnings in excess of the upper limit | J31: =+SUM(H27:H29) -> 0
B33: Step 7 | D33: =+CONCATENATE(TEXT(dc(xxxSheet1!$A$2:$CF$14,"NIC_UR",LEFT(E4,4)),"#.00%")," of the figure at Step 6") -> 2.73% of the figure at Step 6 | L33: =+J31*dc(xxxSheet1!$A$2:$CF$14,"NIC_UR",LEFT(E$4,4)) -> 0
B35: Step 8 | D35: Add results from Steps 2, 5 and 7 to show annual maxima | L35: =+L33+L22+L9 -> 4979.2122
B37: Step 9 | D37: Total of class 1 NI paid | L37: =+SUM(input!J10:J14) -> 0
B39: Step 9 | D39: =CONCATENATE(+IF(L39=0,"No refund due - where the amount at Step 9 is less than Step 8","Refund due - where the amount at Step 9 exceeds Step 8")) -> No refund due - where the amount at Step 9 is less than Step 8 | L39: =MAX(L37-L35,0) -> 0

Sheet xxxtemp (hidden)
B1: max1
B2: 2022/23 input
B4: As the earnings threhhold changed during the tax year it is necessary to examine the payments made more carefully.
B9: Employments | H9: Earnings | J9: NI paid
B11: First employment: | H11: 90000 | J11: 8000
B13: Second employment: | H13: 10 | J13: 0
B15: Third employment: | H15: 10 | J15: 0

Sheet input_both
B1: max4
A2: pinh | B2: Input: Maximum National Insurance contributions
B4: Tax year
B5: Choose tax year: | J5: 2022/23 | P5: =+dc(xxxSheet1!$A$2:$CF$14,"year_name",(whatyear(TODAY()))-2) -> 2021/22 | Q5: Last
P6: =+dc(xxxSheet1!$A$2:$CF$14,"year_name",(whatyear(TODAY())-1)) -> 2022/23 | Q6: Current
P7: =+dc(xxxSheet1!$A$2:$CF$14,"year_name",(whatyear(TODAY()))+1) -> 2024/25 | Q7: Next
B8: Employments | H8: Earnings | J8: NI paid | P8: class4 LPL | Q8: =dc(xxxSheet1!$A$2:$CF$14,"NIC_LPL",LEFT(J5,4)) -> 11908
B10: First employment: | H10: 0 | J10: 0
B12: Second employment: | H12: 0 | J12: 0
B14: Third employment: | H14: 0 | J14: 0
B16: Self employed and partnership profits | H16: Profits | J16: NI paid
B17: First self employment or partnership : | H17: 0 | J17: 0
B19: Second self employment or partnership: | H19: 0 | J19: 0
B21: Third self employment or partnership: | H21: 0 | J21: 0
B23: Class 2 NI paid: | J23: 0

Sheet max4
A1: input_both
A2: bhp | B2: =CONCATENATE("Results ",input!J5) -> Results 2022/23
B4: Calculation | S4: =+input_both!J5 -> 2022/23
H6: £ | J6: £ | L6: £
C7: Step 1 | D7: Notional annual maximum amount liable to class 4
D8: =+CONCATENATE("Upper limit ",TEXT(dc(xxxSheet1!$A$2:$CF$14,"NIC_UPL",LEFT(S4,4)),"£#,###")," - ","lower limit ",TEXT(dc(xxxSheet1!$A$2:$CF$14,"NIC_LPL",LEFT(S4,4)),"£#,###")) -> Upper limit £50,270 - lower limit £11,908 | J8: =+dc(xxxSheet1!$A$2:$CF$14,"NIC_UPL",LEFT(S4,4))-dc(xxxSheet1!$A$2:$CF$14,"NIC_LPL",LEFT(S4,4)) -> 38362
C10: Step 2 | D10: =+CONCATENATE(TEXT(dc(xxxSheet1!$A$2:$CF$14,"NIC_SE1",LEFT(S4,4)),"#.00%")," of the figure in Step 1") -> 9.73% of the figure in Step 1 | L10: =+J8*dc(xxxSheet1!$A$2:$CF$14,"NIC_SE1",LEFT(S$4,4)) -> 3732.6226
C12: Step 3 | D12: 53 weeks of class 2 contributions | H12: =+CONCATENATE("53 x ",TEXT(dc(xxxSheet1!$A$2:$CF$14,"NIC_C2",LEFT(S4,4)),"£#.00")) -> 53 x £3.15 | L12: =53* dc(xxxSheet1!$A$2:$CF$14,"NIC_C2",LEFT(S4,4)) -> 166.95
L13: =+L10+L12 -> 3899.5726
C16: Step 4 | D16: =+CONCATENATE("Subtract from 3 the amount of class 2 paid, and the class 1 paid at ",TEXT(dc(xxxSheet1!$A$2:$CF$14,"NIC_LR",LEFT(S4,4)),"#.00%")) -> Subtract from 3 the amount of class 2 paid, and the class 1 paid at 12.73%
D18: Employment 1 | H18: =IF(input_both!H10<>"",MAX((MIN(dc(xxxSheet1!$A$2:$CF$14,"NIC_UEL",LEFT(S4,4)),input_both!H10)-dc(xxxSheet1!$A$2:$CF$14,"NIC_PT",LEFT(S4,4)))*dc(xxxSheet1!$A$2:$CF$14,"NIC_LR",LEFT(S4,4)),0),0) -> 0 | T18: works based on full year
D19: Employment 2 | H19: =IF(input_both!H12<>"",+MAX((MIN(dc(xxxSheet1!$A$2:$CF$14,"NIC_UEL",LEFT(S4,4)),input_both!H12)-dc(xxxSheet1!$A$2:$CF$14,"NIC_PT",LEFT(S4,4)))*dc(xxxSheet1!$A$2:$CF$14,"NIC_LR",LEFT(S4,4)),0),0) -> 0
D20: Employment 3 | H20: =+IF(input_both!H14<>"",MAX((MIN(dc(xxxSheet1!$A$2:$CF$14,"NIC_UEL",LEFT(S4,4)),input_both!H14)-dc(xxxSheet1!$A$2:$CF$14,"NIC_PT",LEFT(S4,4)))*dc(xxxSheet1!$A$2:$CF$14,"NIC_LR",LEFT(S4,4)),0),0) -> 0
D21: Class 2 contributions paid | H21: =+input_both!J23 -> 0
H22: =+SUM(H18:H21) -> 0
D24: =CONCATENATE("Subtract amount at Step 4 from result at Step 3; ",TEXT(L13,"£#,###")," - ",TEXT(H22,"£#,###")) -> Subtract amount at Step 4 from result at Step 3; £3,900 - £ | H24: =+L13-H22 -> 3899.5726
D25: if negative show zero | L25: =+IF(H24<0,0,H24) -> 3899.5726
C27: Step 5 | D27: =+CONCATENATE("Multiply result of Step 4 by 100/",TEXT(dc(xxxSheet1!$A$2:$CF$14,"NIC_SE1",LEFT(S4,4))*100,"#")) -> Multiply result of Step 4 by 100/10 | L27: =+L25*100/(dc(xxxSheet1!$A$2:$CF$14,"NIC_SE1",LEFT(S4,4))*100) -> 40077.82734
C29: Step 6 | D29: Subtract the lower profits limit from the upper profits limit, or the actual profits if lower | G29: =+CONCATENATE(TEXT(MIN(dc(xxxSheet1!$A$2:$CF$14,"NIC_UPL",LEFT(S4,4)),input_both!H17+input_both!H19+input_both!H21),"£#,###")," - ",TEXT(dc(xxxSheet1!$A$2:$CF$14,"NIC_LPL",LEFT(S4,4)),"£#,###")," ") -> £ - £11,908 | J29: =+MAX((MIN(dc(xxxSheet1!$A$2:$CF$14,"NIC_UPL",LEFT(S4,4)),input_both!H17+input_both!H19+input_both!H21)-(dc(xxxSheet1!$A$2:$CF$14,"NIC_LPL",LEFT(S4,4)))),0) -> 0
C33: Step 7 | D33: Subtract result at Step 5 from Step 6 (restrict to nil) | G33: =IF(AND(J29=0,L27=0),"nil",+CONCATENATE(IF(J29>0,TEXT(J29,"£#,###"),0)," - ",IF(L27=0,"0",TEXT(L27,"£#,###"))," ")) -> 0 - £40,078 | J33: =IF(+J29-L27<0,0,J29-L27) -> 0
C35: Step 8 | D35: =+CONCATENATE(TEXT(dc(xxxSheet1!$A$2:$CF$14,"NIC_UR",LEFT(S4,4)),"#.00%")," of amount at Step 7") -> 2.73% of amount at Step 7 | L35: =J33*dc(xxxSheet1!$A$2:$CF$14,"NIC_UR",LEFT(S$4,4)) -> 0
C37: Step 9 | D37: =CONCATENATE("Calculate the amount by which the profits exceed the upper profits limit and take ",TEXT(dc(xxxSheet1!$A$2:$CF$14,"NIC_UR",LEFT(S4,4)),"#.00%")) -> Calculate the amount by which the profits exceed the upper profits limit and take 2.73% | G37: =+CONCATENATE(TEXT(input_both!H17+input_both!H19+input_both!H21,"£#,###")," - ",TEXT(dc(xxxSheet1!$A$2:$CF$14,"NIC_UPL",LEFT(S4,4)),"£#,###")," ") -> £ - £50,270
H38: =IF((input_both!H17+input_both!H19+input_both!H21)-dc(xxxSheet1!$A$2:$CF$14,"NIC_UPL",LEFT(S4,4))>0,CONCATENATE(TEXT(input_both!H17+input_both!H19+input_both!H21-dc(xxxSheet1!$A$2:$CF$14,"NIC_UPL",LEFT(S4,4)),"#,###")," x ",TEXT(dc(xxxSheet1!$A$2:$CF$14,"NIC_UR",LEFT(S4,4)),"#.00%")),"nil") -> nil | L38: =MAX((((input_both!H17+input_both!H19+input_both!H21)-dc(xxxSheet1!$A$2:$CF$14,"NIC_UPL",LEFT(S4,4)))*(dc(xxxSheet1!$A$2:$CF$14,"NIC_UR",LEFT(S4,4)))),0) -> 0
C40: Step 10 | D40: Add amounts from Steps 4, 8 and 9 - maximum Class 4 liability | L40: =+L25+L35+L38 -> 3899.5726
C43: Step 11 | D43: Add in the class 1 and 2 NI due:
D44: Class 4 per Step 10 | L44: =+L40 -> 3899.5726
D45: Class 1 - earnings up to upper earnings limit | L45: =((MIN(+input_both!H10+input_both!H12+input_both!H14,dc(xxxSheet1!$A$2:$CF$14,"NIC_UEL",LEFT(S4,4)))-+dc(xxxSheet1!$A$2:$CF$14,"NIC_PT",LEFT(S4,4)))*dc(xxxSheet1!$A$2:$CF$14,"NIC_LR",LEFT(S4,4))) -> -1515.8884
D46: Class 1 - earnings over upper earnings limit | L46: =((MAX(input_both!H10+input_both!H12+input_both!H14-dc(xxxSheet1!$A$2:$CF$14,"NIC_UEL",LEFT(S4,4)),0)*dc(xxxSheet1!$A$2:$CF$14,"NIC_UR",LEFT(S4,4)))) -> 0
D47: Class 2 | E47: =+CONCATENATE("- 52 weeks x ",TEXT(dc(xxxSheet1!$A$2:$CF$14,"NIC_C2",LEFT(S4,4)),"£#.00")) -> - 52 weeks x £3.15 | L47: =52*(dc(xxxSheet1!$A$2:$CF$14,"NIC_C2",LEFT(S4,4))) -> 163.8
L48: =+SUM(L44:L47) -> 2547.4842
D50: Total NI paid | L50: =+SUM(input_both!J10:J23) -> 0
D52: =+IF(L52>0,"Refund due","No refund due") -> No refund due | L52: =IF(L50-L48<1,0,L50-L48) -> 0

Sheet info_input_both
A1: input_both
A2: bhp | B2: Information
C4: If you have chosen employment on the Home page:
C6: Choose the tax year | E6: Click on the year box and select the year from the drop-down list.
C8: Employments | E8: Enter in whole pounds your gross salary or wages from each employment for the tax year you have selected. The calculator allows entries for three separate employments. In the NI paid column enter the NI paid shown on your P60. The tool will only calculate the class 1 correctly where earnings are paid regularly for the entire year.
C10: If you have chosen employment and self-employment on the Home page:
C12: Employments | E12: See Employments above.
C14: Self employment and partnership earnings | E14: Enter in whole pounds your profit from each self-employment or partnership for the tax year you have selected. The calculator allows entries for three separate self-employments. In the NI paid column enter the Class 4 NI paid as part of your self-assessment bill for the year concerned. | R14: flags
R16: =+IF(input!H10<>0,1,0) -> 0
C17: Results button | E17: Click the Results button to see a detailed calculation of of your NI position. | R17: =+IF(input!H12<>0,1,0) -> 0

Sheet info_input
A1: input_both
A2: bhp | B2: Information
C4: If you have chosen employment on the Home page:
C6: Choose the tax year | E6: Click on the year box and select the year from the drop-down list.
C8: Employments | E8: Enter in whole pounds your gross salary or wages from each employment for the tax year you have selected. The calculator allows entries for three separate employments. In the NI paid column enter the NI paid shown on your P60 and if you left a job during the year you will get the information from your final payslip.
C10: If you have chosen employment and self-employment on the Home page:
C12: Employments | E12: See Employments above.
C14: Self employment and partnership earnings | E14: Enter in whole pounds your profit from each self-employment or partnership for the tax year you have selected. The calculator allows entries for three separate self-employments. In the NI paid column enter the Class 4 NI paid as part of your self-assessment bill for the year concerned. | R14: flags
R16: =+IF(input!H10<>0,1,0) -> 0
C17: Results button | E17: Click the Results button to see a detailed calculation of of your NI position. | R17: =+IF(input!H12<>0,1,0) -> 0
